fUST/lending_fUST_20250623
["ID","MTS","AMOUNT","RATE_DAILY","PERIOD"]
[366999626,1750609854025,-460.0,0.00022191,3]
[366999627,1750609854035,-460.0,0.00022191,3]
[366999628,1750609854048,-460.0,0.00022191,3]
[366999629,1750609854058,-6050.34,0.00022191,3]
[366999630,1750609854067,-517.22,0.00022191,3]
[366999631,1750609854076,-3335.98,0.00022191,3]
[366999632,1750609854086,-3424.64,0.00022191,3]
[366999633,1750609854095,-460.0,0.00022191,3]
[366999634,1750609854105,-494.44,0.00022191,3]
[366999635,1750609854114,-2749.45,0.00022191,3]
[366999636,1750609854125,-460.0,0.00022191,3]
[366999637,1750609854135,-460.0,0.00022191,3]
[366999638,1750609854144,-460.0,0.00022191,3]
[366999639,1750609854154,-1149.95,0.00022191,3]
[366999640,1750609854163,-460.0,0.00022191,3]
[366999641,1750609854172,-1277.72,0.00022191,3]
[366999642,1750609854182,-564.3,0.00022191,3]
[366999643,1750609854192,-460.0,0.00022191,3]
[366999644,1750609854201,-7680.25,0.00022191,3]
[366999645,1750609854211,-460.0,0.00022191,3]
[366999646,1750609854220,-460.0,0.00022191,3]
[366999647,1750609854230,-460.0,0.00022191,3]
[366999648,1750609854241,-460.0,0.00022191,3]
[366999649,1750609854250,-460.0,0.00022191,3]
[366999650,1750609854439,-726.03,0.00022191,3]
[366999651,1750609854448,-913.21,0.00022191,3]
[366999652,1750609854458,-460.0,0.00022191,3]
[366999653,1750609854467,-255.48951049,0.00022191,3]
[366999654,1750609854476,-460.0,0.00022191,3]
[366999655,1750609854486,-460.0,0.00022191,3]
[366999656,1750609854496,-460.0,0.00022191,3]
[366999657,1750609854505,-2018.73,0.00022191,3]
[366999658,1750609854515,-460.0,0.00022191,3]
[366999659,1750609854525,-460.0,0.00022191,3]
[366999660,1750609854536,-5819.48,0.00022191,3]
[366999661,1750609854545,-460.0,0.00022191,3]
[366999662,1750609854555,-716.82,0.00022191,3]
[366999663,1750609854564,-471.21,0.00022191,3]
[366999664,1750609854574,-3212.81,0.00022191,3]
[366999665,1750609854583,-1338.73,0.00022191,3]
[366999666,1750609854593,-460.0,0.00022191,3]
[366999667,1750609854603,-381.59875939,0.00022191,3]
[366999668,1750609854612,-460.0,0.00022191,3]
[366999669,1750609854623,-460.0,0.00022191,3]
[366999670,1750609854632,-460.0,0.00022191,3]
[366999671,1750609854641,-460.0,0.00022191,3]
[366999672,1750609854651,-460.0,0.00022191,3]
[366999673,1750609854661,-223.12521175,0.00022191,3]
[366999674,1750609854670,-5387.39,0.00022191,3]
[366999675,1750609854680,-460.0,0.00022191,3]
[366999676,1750609854689,-460.0,0.00022191,3]
[366999677,1750609854699,-1606.07,0.00022191,3]
[366999678,1750609854709,-460.0,0.00022191,3]
[366999679,1750609854719,-460.0,0.00022191,3]
[366999680,1750609854728,-1057.34,0.00022191,3]
[366999681,1750609854739,-1491.13,0.00022191,3]
[366999682,1750609854749,-885.95,0.00022191,3]
[366999683,1750609854758,-460.0,0.00022191,3]
[366999684,1750609854767,-460.0,0.00022191,3]
[366999685,1750609854777,-3520.05,0.00022191,3]
[366999686,1750609854786,-460.0,0.00022191,3]
[366999687,1750609854795,-460.0,0.00022191,3]
[366999688,1750609854805,-460.0,0.00022191,3]
[366999689,1750609854814,-952.489273,0.00022191,3]
[366999690,1750609854830,-302.0,0.00022191,3]
[366999692,1750609855317,-233.610727,0.00022191,3]
[366999693,1750609855328,-689.95,0.00022191,3]
[366999694,1750609855339,-1781.95,0.00022191,3]
[366999695,1750609855348,-3099.07,0.00022191,3]
[366999696,1750609855359,-10194.55,0.00022191,3]
[366999697,1750609855369,-460.0,0.00022191,3]
[366999698,1750609855379,-2142.11,0.00022191,3]
[366999699,1750609855388,-460.0,0.00022191,3]
[366999700,1750609855399,-460.0,0.00022191,3]
[366999701,1750609855408,-181.8895948,0.00022191,3]
[366999702,1750609855417,-6524.14,0.00022191,3]
[366999703,1750609855427,-460.0,0.00022191,3]
[366999704,1750609855436,-460.0,0.00022191,3]
[366999705,1750609855447,-460.0,0.00022191,3]
[366999706,1750609855457,-460.0,0.00022191,3]
[366999707,1750609855467,-733.31,0.00022191,3]
[366999708,1750609855477,-460.27,0.00022191,3]
[366999709,1750609855488,-5894.06,0.00022191,3]
[366999710,1750609855498,-460.0,0.00022191,3]
[366999711,1750609855508,-460.0,0.00022191,3]
[366999712,1750609855518,-460.0,0.00022191,3]
[366999713,1750609855527,-2732.52,0.00022191,3]
[366999714,1750609855537,-460.0,0.00022191,3]
[366999715,1750609855548,-460.0,0.00022191,3]
[366999716,1750609855558,-460.0,0.00022191,3]
[366999717,1750609855568,-460.0,0.00022191,3]
[366999718,1750609855577,-3052.9,0.00022191,3]
[366999719,1750609855586,-460.0,0.00022191,3]
[366999720,1750609855596,-460.0,0.00022191,3]
[366999721,1750609855606,-467.81903236,0.00022191,3]
[366999722,1750609855616,-1037.58,0.00022191,3]
[366999723,1750609855626,-460.0,0.00022191,3]
[366999724,1750609855636,-460.0,0.00022191,3]
[366999725,1750609855647,-569.36,0.00022191,3]
[366999726,1750609855656,-981.11,0.00022191,3]
[366999728,1750609855666,-318.48755791,0.00022191,3]
[366999729,1750609855676,-1520.51,0.00022191,3]
[366999731,1750609855686,-936.55,0.00022191,3]
[366999734,1750609855696,-422.67647374,0.00022191,3]
[366999736,1750609855706,-460.0,0.00022191,3]
[366999737,1750609855718,-467.85316936,0.00022191,3]
[366999739,1750609855727,-478.61214098,0.00022191,3]
[366999742,1750609855741,-460.0,0.00022191,3]
[366999744,1750609855752,-1624.71,0.00022191,2]
[366999746,1750609855763,-460.0,0.00022191,3]
[366999748,1750609855773,-7090.17374701,0.00022191,3]
[366999760,1750609855886,-153.67625299,0.00022191,3]
[366999763,1750609855897,-579.83,0.00022191,3]
[366999765,1750609855907,-108.29919566,0.00022191,3]
[366999775,1750609855993,-156.61554626,0.00020417,2]
[366999777,1750609856003,-460.26698844,0.00020417,2]
[366999779,1750609856015,-124.91105956,0.00020417,2]
[366999781,1750609856024,-365.38665058,0.00020417,2]
[366999783,1750609856033,-500.0,0.00020417,2]
[366999785,1750609856043,-460.0,0.00021917,3]
[366999787,1750609856056,-460.0,0.00021917,3]
[366999789,1750609856065,-237.21028986,0.00022191,3]
[366999857,1750609856763,-164.15926043,0.00021907,10]
[366999876,1750609865880,291.09447932,0.000201,2]
[366999877,1750609877064,2173.04223463,0.00020091,2]
[366999957,1750609954545,171.618744,0.00020262,120]
[366999959,1750609988719,441.842741,0.00019416,2]
[366999960,1750610011206,232.43864,0.00019404,2]
[366999961,1750610050661,16538.46034421,0.00019417,2]
[366999962,1750610050684,8361.53965579,0.00019417,2]
[366999963,1750610053364,729.1258145,0.00019417,2]
[366999964,1750610069684,811.802752,0.00019927,2]
[366999965,1750610070172,22097.53177771,0.0002,2]
[366999966,1750610070196,32000.0,0.0002,2]
[366999967,1750610070218,348.93104198,0.0002,2]
[366999969,1750610124808,1534.65533982,0.00020091,2]
[366999970,1750610125447,383.41280365,0.00020099,2]
[366999971,1750610156235,1154.2067005,0.00019573,2]
[366999972,1750610172951,200.0,0.00024931,120]
[366999973,1750610178424,1023.10355988,0.00020091,2]
[366999974,1750610189404,502.13183455,0.00025,30]
[366999976,1750610426071,682.06903992,0.00020091,2]
[366999977,1750610429785,368.37700743,0.00020099,2]
[366999979,1750610479882,150.0,0.00020091,2]
[366999984,1750610628581,315.339274,0.00013699,2]
[366999988,1750610658235,5000.0,0.000201,2]
[366999990,1750610727342,2122.5932573,0.00020091,2]
[366999991,1750610781304,1415.06217154,0.000189,2]
[366999992,1750610811975,1270.2491695,0.00019399,2]
[366999993,1750610833100,-315.339274,0.00020187,2]
[366999994,1750610833121,-171.618744,0.00020262,2]
[366999995,1750610833144,-608.62415899,0.00020303,2]
[366999996,1750610833164,-765.34424799,0.0002039,2]
[366999997,1750610833186,-300.0,0.00020401,2]
[366999998,1750610833208,-300.0,0.00020401,2]
[366999999,1750610833233,-500.0,0.00020402,2]
[367000000,1750610833255,-500.0,0.00020402,2]
[367000001,1750610833277,-500.0,0.00020402,2]
[367000002,1750610833299,-419.13653387,0.00020402,2]
[367000003,1750610836132,3012.10966451,0.000201,2]
[367000005,1750610845042,10000.0,0.00019408,2]
[367000006,1750610889909,3000.0,0.00025,120]
[367000007,1750610895422,2319.81781249,0.000201,2]
[367000009,1750610999201,223.612904,0.00019739,2]
[367000010,1750611020533,676.46025348,0.00019404,2]
[367000011,1750611020558,24223.53974652,0.00019404,2]
[367000012,1750611028731,943.37478102,0.000189,2]
[367000023,1750611032359,-207.4,0.00020392,2]
[367000024,1750611032369,-500.0,0.00020392,2]
[367000025,1750611032379,-25000.0,0.00020392,2]
[367000026,1750611032389,-500.0,0.00020392,2]
[367000027,1750611032398,-506.2064286,0.00020392,2]
[367000028,1750611032408,-5000.0,0.00020392,2]
[367000029,1750611032420,-300.0,0.000204,2]
[367000030,1750611032430,-300.0,0.000204,2]
[367000031,1750611032440,-1200.0,0.000204,2]
[367000032,1750611032450,-247.88674165,0.00020401,2]
[367000033,1750611032460,-500.0,0.00020401,2]
[367000034,1750611032470,-365.38665058,0.00020401,2]
[367000035,1750611032479,-500.0,0.00020401,2]
[367000036,1750611032491,-500.0,0.00020401,2]
[367000037,1750611032502,-500.0,0.00020401,2]
[367000039,1750611032511,-500.0,0.00020401,2]
[367000041,1750611032521,-180.0,0.00020401,2]
[367000043,1750611032530,-500.0,0.00020401,2]
[367000045,1750611032540,-500.0,0.00020401,2]
[367000046,1750611032551,-441.20141308,0.00020401,2]
[367000048,1750611032560,-500.0,0.00020401,2]
[367000050,1750611032569,-500.0,0.00020401,2]
[367000052,1750611032579,-500.0,0.00020401,2]
[367000053,1750611032588,-500.0,0.00020401,2]
[367000054,1750611032598,-500.0,0.00020401,2]
[367000056,1750611032608,-500.0,0.00020401,2]
[367000058,1750611032617,-356.98174111,0.00020401,2]
[367000060,1750611032627,-500.0,0.00020401,2]
[367000061,1750611032637,-500.0,0.00020401,2]
[367000063,1750611032646,-500.0,0.00020401,2]
[367000065,1750611032655,-339.59472261,0.00020401,2]
[367000067,1750611032665,-500.0,0.00020401,2]
[367000069,1750611032675,-500.0,0.00020401,2]
[367000071,1750611032684,-500.0,0.00020401,2]
[367000073,1750611032694,-500.0,0.00020401,2]
[367000074,1750611032703,-500.0,0.00020401,2]
[367000076,1750611032713,-500.0,0.00020401,2]
[367000078,1750611032723,-500.0,0.00020401,2]
[367000080,1750611032732,-500.0,0.00020401,2]
[367000082,1750611032742,-500.0,0.00020401,2]
[367000084,1750611032751,-500.0,0.00020401,2]
[367000086,1750611032760,-500.0,0.00020401,2]
[367000088,1750611032769,-500.0,0.00020401,2]
[367000090,1750611032779,-500.0,0.00020401,2]
[367000092,1750611032789,-500.0,0.00020401,2]
[367000093,1750611032799,-500.0,0.00020401,2]
[367000095,1750611032809,-500.0,0.00020401,2]
[367000097,1750611032819,-500.0,0.00020401,2]
[367000099,1750611032829,-500.0,0.00020401,2]
[367000101,1750611032839,-500.0,0.00020401,2]
[367000103,1750611032848,-500.0,0.00020401,2]
[367000105,1750611032858,-500.0,0.00020401,2]
[367000107,1750611032867,-500.0,0.00020401,2]
[367000108,1750611032877,-500.0,0.00020401,2]
[367000109,1750611032887,-500.0,0.00020401,2]
[367000110,1750611032897,-63.93360037,0.00020401,2]
[367000111,1750611032910,-236.06639963,0.00020401,2]
[367000112,1750611032920,-500.0,0.00020402,2]
[367000114,1750611032929,-7429.45656177,0.00020402,2]
[367000115,1750611032949,-1109.14178699,0.00020402,2]
[367000116,1750611032960,-9481.94773304,0.00020402,2]
[367000153,1750611038218,-357.27000869,0.00020401,2]
[367000994,1750611046756,-500.0,0.00020391,2]
[367000996,1750611046766,-206.33130457,0.00020391,2]
[367000999,1750611046776,-500.0,0.00020391,2]
[367001001,1750611046785,-500.0,0.00020391,2]
[367001002,1750611046794,-233.95947227,0.00020391,2]
[367001004,1750611046803,-142.72999131,0.00020401,2]
[367001006,1750611046812,-550.79010653,0.00020401,2]
[367001008,1750611046822,-2599.5904381,0.00020402,2]
[367001019,1750611046916,-10197.03449116,0.00020402,2]
[367001024,1750611046951,-19182.82898894,0.00020402,2]
[367001026,1750611046961,-275.33,0.00020402,2]
[367001028,1750611046970,-255.0,0.0002041,2]
[367001030,1750611046979,-255.0,0.0002041,2]
[367001032,1750611046991,-160.0,0.00020414,2]
[367001034,1750611047001,-255.0,0.00020415,2]
[367001036,1750611047010,-255.0,0.00020415,2]
[367001038,1750611047020,-384.62987519,0.0002042,2]
[367001040,1750611047029,-349.54635066,0.0002042,2]
[367001042,1750611047039,-500.0,0.00020548,2]
[367001044,1750611047048,-500.0,0.00020548,2]
[367001046,1750611047058,-500.0,0.00020548,2]
[367001048,1750611047067,-500.0,0.00020548,2]
[367001049,1750611047077,-500.0,0.00020548,2]
[367001051,1750611047087,-500.0,0.00020548,2]
[367001054,1750611047097,-500.0,0.00020548,2]
[367001056,1750611047107,-500.0,0.00020548,2]
[367001058,1750611047116,-500.0,0.00020548,2]
[367001060,1750611047125,-500.0,0.00020548,2]
[367001062,1750611047135,-500.0,0.00020548,2]
[367001064,1750611047144,-393.81089848,0.00020548,2]
[367001066,1750611047153,-500.0,0.00020548,2]
[367001068,1750611047163,-5445.65638968,0.00020822,2]
[367001070,1750611047173,-5000.0,0.00020822,2]
[367001072,1750611047183,-5000.0,0.00020822,2]
[367001074,1750611047192,-5000.0,0.00020822,2]
[367001076,1750611047202,-507.0,0.00020831,3]
[367001078,1750611047212,-5000.0,0.0002094,2]
[367001080,1750611047221,-500.0,0.00020977,7]
[367001082,1750611047231,-500.0,0.00020988,2]
[367001084,1750611047242,-500.0,0.00020988,2]
[367001086,1750611047252,-500.0,0.00020988,2]
[367001088,1750611047262,-1813.92265887,0.000212,4]
[367001090,1750611047275,-1813.92265862,0.000212,4]
[367001092,1750611047284,-331.81304512,0.00021281,2]
[367001094,1750611047294,-500.0,0.00021289,2]
[367001096,1750611047303,-500.0,0.00021289,2]
[367001098,1750611047313,-500.0,0.00021289,2]
[367001100,1750611047323,-500.0,0.00021289,2]
[367001102,1750611047331,-500.0,0.00021289,2]
[367001104,1750611047341,-500.0,0.00021289,2]
[367001106,1750611047350,-500.0,0.00021289,2]
[367001108,1750611047359,-1813.92265862,0.00021314,5]
[367001110,1750611047369,-500.0,0.00021314,2]
[367001112,1750611047378,-506.96582777,0.00021314,2]
[367001113,1750611047387,-500.0,0.00021314,2]
[367001115,1750611047396,-500.0,0.00021314,2]
[367001117,1750611047405,-500.0,0.00021314,2]
[367001119,1750611047416,-500.0,0.00021314,2]
[367001122,1750611047426,-500.0,0.00021493,2]
[367001123,1750611047436,-317.69235227,0.00021493,2]
[367001125,1750611047445,-500.0,0.00021493,2]
[367001127,1750611047456,-500.33125713,0.00021493,2]
[367001129,1750611047466,-532.397,0.00021493,2]
[367001131,1750611047476,-641.98,0.00021501,10]
[367001133,1750611047486,-846.39664074,0.00021511,2]
[367001135,1750611047496,-213.59462818,0.00021511,2]
[367001137,1750611047505,-160.0,0.00021511,2]
[367001139,1750611047515,-160.0,0.00021511,2]
[367001141,1750611047524,-425.01221603,0.00021511,2]
[367001143,1750611047533,-160.0,0.00021511,2]
[367001145,1750611047542,-160.0,0.00021511,2]
[367001147,1750611047552,-12551.52821599,0.00021511,2]
[367001149,1750611047562,-160.0,0.00021511,2]
[367001151,1750611047571,-160.0,0.00021511,2]
[367001153,1750611047581,-836.56272071,0.00021511,2]
[367001155,1750611047591,-230.14598372,0.00021511,2]
[367001157,1750611047600,-1813.92265862,0.00021521,5]
[367001159,1750611047609,-500.0,0.00021525,8]
[367001161,1750611047619,-1000.0,0.00021535,2]
[367001162,1750611047628,-1000.0,0.00021535,2]
[367001164,1750611047638,-1000.0,0.00021535,2]
[367001166,1750611047647,-411.7517878,0.00021536,2]
[367001168,1750611047657,-500.0,0.00021594,2]
[367001170,1750611047666,-500.0,0.00021594,2]
[367001172,1750611047675,-500.0,0.00021694,2]
[367001174,1750611047685,-500.0,0.00021694,2]
[367001176,1750611047695,-13275.2524932,0.00021698,2]
[367001178,1750611047704,-3853.57,0.000217,2]
[367001181,1750611047714,-1813.92265862,0.00021728,5]
[367001183,1750611047723,-215.0738,0.00021761,2]
[367001184,1750611047732,-275.33,0.00021772,2]
[367001187,1750611047744,-158.7943911,0.00021806,2]
[367001188,1750611047754,-1000.0,0.00021837,2]
[367001190,1750611047763,-1000.0,0.00021837,2]
[367001193,1750611047774,-1000.0,0.00021837,2]
[367001194,1750611047784,-1000.0,0.00021837,2]
[367001197,1750611047794,-1000.0,0.00021837,2]
[367001198,1750611047803,-1000.0,0.00021837,2]
[367001200,1750611047813,-500.0,0.00021853,2]
[367001202,1750611047823,-500.0,0.00021853,2]
[367001204,1750611047832,-366.36247253,0.00021853,2]
[367001207,1750611047842,-500.0,0.00021853,2]
[367001208,1750611047851,-411.7517878,0.00021854,2]
[367001210,1750611047860,-1000.0,0.00021862,2]
[367001213,1750611047872,-1000.0,0.00021862,2]
[367001215,1750611047882,-1000.0,0.00021862,2]
[367001217,1750611047891,-1000.0,0.00021862,2]
[367001219,1750611047901,-1000.0,0.00021862,2]
[367001220,1750611047910,-264.41,0.00021907,3]
[367001222,1750611047919,-793.23,0.00021907,3]
[367001224,1750611047928,-460.0,0.00021917,3]
[367001226,1750611047938,-460.0,0.00021917,3]
[367001228,1750611047947,-224.98999641,0.00021917,3]
[367001230,1750611047956,-460.0,0.00021917,3]
[367001232,1750611047966,-460.0,0.00021917,3]
[367001234,1750611047975,-460.0,0.00021917,3]
[367001236,1750611047985,-460.0,0.00021917,3]
[367001238,1750611047997,-460.0,0.00021917,3]
[367001240,1750611048007,-500.73,0.00021917,3]
[367001243,1750611048017,-460.0,0.00021917,3]
[367001244,1750611048027,-460.0,0.00021917,3]
[367001246,1750611048037,-240.10884094,0.00021917,3]
[367001248,1750611048047,-460.0,0.00021917,3]
[367001250,1750611048057,-460.0,0.00021917,3]
[367001252,1750611048072,-444.88158223,0.00021917,3]
[367001254,1750611048082,-460.0,0.00021917,3]
[367001256,1750611048091,-460.0,0.00021917,3]
[367001258,1750611048100,-460.0,0.00021917,3]
[367001260,1750611048109,-460.0,0.00021917,3]
[367001262,1750611048119,-460.0,0.00021917,3]
[367001264,1750611048129,-460.0,0.00021917,3]
[367001266,1750611048138,-460.0,0.00021917,3]
[367001268,1750611048147,-846.39664074,0.00021917,3]
[367001270,1750611048157,-160.0,0.00021917,3]
[367001272,1750611048167,-213.59462818,0.00021917,3]
[367001274,1750611048176,-12551.52821599,0.00021917,3]
[367001276,1750611048185,-500.0,0.00021917,2]
[367001278,1750611048195,-400.0,0.00021918,7]
[367001280,1750611048204,-1813.92265862,0.00021934,6]
[367001282,1750611048214,-500.0,0.00021973,2]
[367001284,1750611048223,-500.0,0.00021973,2]
[367001286,1750611048232,-500.0,0.00021973,2]
[367001288,1750611048244,-500.0,0.00021973,2]
[367001310,1750611048451,-500.0,0.00021973,2]
[367001312,1750611048463,-500.0,0.00021973,2]
[367001314,1750611048473,-500.0,0.00021973,2]
[367001316,1750611048483,-6851.71582703,0.0002199,2]
[367001318,1750611048497,-8233.65,0.00022,7]
[367001321,1750611048507,-187.0,0.00022,2]
[367001323,1750611048517,-167.0,0.00022,2]
[367001325,1750611048526,-409.0,0.00022,2]
[367001327,1750611048536,-500.0,0.00022023,2]
[367001329,1750611048546,-500.0,0.00022023,2]
[367001331,1750611048556,-500.0,0.00022023,2]
[367001333,1750611048566,-512.26813608,0.00022023,2]
[367001334,1750611048575,-1000.0,0.00022041,2]
[367001335,1750611048584,-1000.0,0.00022041,2]
[367001336,1750611048593,-500.0,0.00022073,9]
[367001337,1750611048602,-1500.0,0.00022083,2]
[367001338,1750611048611,-1500.0,0.00022083,2]
[367001339,1750611048621,-1500.0,0.00022083,2]
[367001340,1750611048631,-770.0,0.00022114,2]
[367001341,1750611048640,-1813.92265862,0.00022141,6]
[367001342,1750611048649,-1000.0,0.00022142,2]
[367001344,1750611048658,-1000.0,0.00022142,2]
[367001346,1750611048668,-411.751788,0.00022164,2]
[367001348,1750611048678,-460.0,0.00022191,3]
[367001350,1750611048688,-151.0,0.00022191,2]
[367001351,1750611048697,-460.0,0.00022191,3]
[367001354,1750611048707,-460.0,0.00022191,3]
[367001355,1750611048717,-460.0,0.00022191,3]
[367001358,1750611048727,-460.0,0.00022191,3]
[367001360,1750611048737,-500.73,0.00022191,3]
[367001362,1750611048752,-460.0,0.00022191,3]
[367001364,1750611048761,-460.0,0.00022191,3]
[367001366,1750611048771,-463.24028936,0.00022191,3]
[367001368,1750611048781,-368.0420577,0.00022191,3]
[367001369,1750611048790,-460.0,0.00022191,3]
[367001371,1750611048799,-460.0,0.00022191,3]
[367001373,1750611048809,-460.0,0.00022191,3]
[367001375,1750611048819,-460.0,0.00022191,3]
[367001377,1750611048829,-460.0,0.00022191,3]
[367001379,1750611048839,-846.39664074,0.00022191,3]
[367001381,1750611048849,-160.0,0.00022191,3]
[367001383,1750611048858,-213.59462818,0.00022191,3]
[367001386,1750611048868,-12551.52821599,0.00022191,3]
[367001387,1750611048878,-409.0,0.00022192,7]
[367001389,1750611048888,-846.39664074,0.000222,7]
[367001392,1750611048898,-160.0,0.000222,7]
[367001393,1750611048907,-213.59462818,0.000222,7]
[367001396,1750611048918,-12551.52821599,0.000222,7]
[367001398,1750611048928,-420.0,0.00022204,2]
[367001400,1750611048937,-420.0,0.00022204,2]
[367001402,1750611048947,-420.0,0.00022205,2]
[367001404,1750611048957,-1081.9702967,0.00022242,2]
[367001406,1750611048966,-1000.0,0.00022242,2]
[367001408,1750611048976,-541.83808783,0.00022243,2]
[367001410,1750611048985,-539.97937142,0.00022243,2]
[367001412,1750611048998,-203.45627109,0.00022243,2]
[367001413,1750611049009,-448.46180867,0.00022243,2]
[367001415,1750611049018,-965.0,0.00022249,2]
[367001417,1750611049028,-654.0,0.00022249,2]
[367001419,1750611049036,-2161.0,0.00022249,2]
[367001421,1750611049045,-1680.0,0.0002231,2]
[367001423,1750611049056,-1813.92265862,0.00022348,7]
[367001425,1750611049065,-1090.07934268,0.00022385,2]
[367001427,1750611049075,-1500.0,0.00022385,2]
[367001429,1750611049084,-1500.0,0.00022385,2]
[367001431,1750611049094,-1500.0,0.00022385,2]
[367001433,1750611049103,-1500.0,0.00022385,2]
[367001435,1750611049112,-1351.70149214,0.00022385,2]
[367001437,1750611049122,-1000.0,0.00022401,2]
[367001440,1750611049131,-1000.0,0.00022401,2]
[367001442,1750611049142,-1500.0,0.0002241,2]
[367001443,1750611049151,-1216.92236027,0.0002241,2]
[367001446,1750611049161,-1500.0,0.0002241,2]
[367001447,1750611049170,-1500.0,0.0002241,2]
[367001450,1750611049179,-1500.0,0.0002241,2]
[367001451,1750611049188,-155.916,0.00022464,2]
[367001453,1750611049198,-1407.52,0.00022465,3]
[367001455,1750611049208,-460.0,0.00022465,3]
[367001457,1750611049218,-460.0,0.00022465,3]
[367001459,1750611049227,-460.0,0.00022465,3]
[367001461,1750611049237,-460.0,0.00022465,3]
[367001463,1750611049249,-460.0,0.00022465,3]
[367001465,1750611049260,-460.0,0.00022465,3]
[367001468,1750611049270,-460.0,0.00022465,3]
[367001470,1750611049280,-460.0,0.00022465,3]
[367001472,1750611049290,-460.0,0.00022465,3]
[367001474,1750611049300,-460.0,0.00022465,3]
[367001475,1750611049310,-212.04056786,0.00022465,3]
[367001477,1750611049320,-200.03129934,0.00022465,3]
[367001479,1750611049329,-500.73,0.00022465,3]
[367001481,1750611049339,-460.0,0.00022465,3]
[367001483,1750611049348,-460.0,0.00022465,3]
[367001485,1750611049358,-460.0,0.00022465,3]
[367001487,1750611049367,-460.0,0.00022465,3]
[367001489,1750611049377,-460.0,0.00022465,3]
[367001491,1750611049387,-460.0,0.00022465,3]
[367001493,1750611049396,-460.0,0.00022465,3]
[367001496,1750611049406,-500.0,0.00022465,3]
[367001498,1750611049417,-151.0,0.00022465,3]
[367001499,1750611049427,-151.0,0.00022465,3]
[367001501,1750611049437,-151.0,0.00022465,3]
[367001503,1750611049447,-151.0,0.00022465,3]
[367001506,1750611049457,-151.0,0.00022465,3]
[367001508,1750611049467,-151.0,0.00022465,3]
[367001509,1750611049476,-151.0,0.00022465,3]
[367001512,1750611049485,-151.0,0.00022465,2]
[367001513,1750611049498,-151.0,0.00022465,3]
[367001515,1750611049508,-151.0,0.00022465,3]
[367001517,1750611049518,-216.26544804,0.00022465,3]
[367001520,1750611049527,-151.0,0.00022465,3]
[367001522,1750611049537,-199.05133219,0.00022465,3]
[367001524,1750611049547,-1199.0,0.00022465,3]
[367001526,1750611049556,-151.0,0.00022465,3]
[367001527,1750611049565,-151.0,0.00022465,3]
[367001530,1750611049575,-151.0,0.00022465,3]
[367001532,1750611049584,-151.62342471,0.00022465,3]
[367001533,1750611049594,-500.0,0.00022465,3]
[367001535,1750611049603,-151.0,0.00022465,3]
[367001538,1750611049612,-151.0,0.00022465,3]
[367001540,1750611049622,-500.0,0.00022465,3]
[367001542,1750611049631,-500.0,0.00022465,2]
[367001544,1750611049641,-500.0,0.00022492,3]
[367001546,1750611049651,-151.0,0.00022492,3]
[367001548,1750611049660,-151.0,0.00022492,3]
[367001550,1750611049669,-151.0,0.00022492,3]
[367001552,1750611049678,-151.0,0.00022492,3]
[367001554,1750611049687,-151.0,0.00022492,3]
[367001556,1750611049697,-151.0,0.00022492,3]